bitfinex/quotes_ETHUSD_20250822
["timestamp","ask_amount","ask_price","bid_price","bid_amount"]
[1755875301784,4.35183612,4657.9,4656.4,0.001]
[1755875302284,1.98616148,4658.0,4657.0,0.4688]
[1755875302285,0.33616148,4658.0,4657.0,0.4688]
[1755875302585,4.324,4659.3,4657.0,0.4688]
[1755875302755,0.45922864,4659.2,4657.0,0.4688]
[1755875303156,0.45922864,4659.2,4657.0,0.16270855]
[1755875303157,3.92822864,4659.2,4657.0,0.16270855]
[1755875303462,0.6592,4659.0,4656.4,0.001]
[1755875303677,0.02683036,4658.9,4656.4,0.001]
[1755875303900,0.469,4658.8,4656.4,0.001]
[1755875304102,0.3360971,4658.5,4656.4,0.001]
[1755875304281,3.0,4658.3,4656.4,0.001]
[1755875304605,0.02683439,4658.2,4656.4,0.001]
[1755875304887,0.49583439,4658.2,4656.8,0.021]
[1755875305386,0.002,4657.3,4656.8,0.021]
[1755875305552,6.46084016,4657.2,4656.8,0.021]
[1755875305753,6.61128402,4657.2,4656.8,0.021]
[1755875306482,5.965,4657.2,4656.8,0.021]
[1755875306651,0.002,4657.3,4656.8,0.021]
[1755875306847,0.002,4657.3,4652.8,0.02]
[1755875306848,30.0,4656.9,4652.8,0.02]
[1755875307088,3.66,4654.8,4652.8,0.02]
[1755875307252,15.6592002,4654.9,4652.8,0.02]
[1755875307253,3.66,4654.6,4652.8,0.02]
[1755875307450,0.66,4654.4,4652.8,0.02]
[1755875307786,0.02685688,4654.3,4652.8,0.02]
[1755875308150,0.66,4654.1,4652.8,0.02]
[1755875308466,1.651,4655.3,4653.8,0.4888]
[1755875308688,0.02685169,4655.2,4653.8,0.02]
[1755875308857,4.35985169,4655.2,4653.8,0.02]
[1755875309464,0.469,4657.4,4653.8,0.4888]
[1755875309786,4.82784016,4657.2,4653.8,0.4888]
[1755875309963,3.66588715,4657.1,4653.8,0.4888]
[1755875310168,0.33623546,4656.5,4653.8,0.4888]
[1755875310465,0.66,4656.2,4653.8,0.02]
[1755875310774,0.1072,4654.2,4653.8,0.02]
[1755875311156,0.02685803,4654.1,4653.8,0.4888]
[1755875311385,0.02685803,4654.1,4653.8,0.02]
[1755875312295,0.1072,4653.9,4653.8,0.02]
[1755875312897,4.9002,4653.9,4653.8,0.02]
[1755875313059,6.21532,4653.9,4653.8,0.02]
[1755875313251,9.21532,4653.9,4653.8,0.02]
[1755875314210,9.54977417,4653.9,4653.8,0.02]
[1755875315055,9.54977417,4653.9,4653.3,0.001]
[1755875315056,3.66,4653.8,4653.3,0.001]
[1755875315381,3.66,4653.8,4652.8,0.021]
[1755875315382,3.66,4653.3,4652.8,0.021]
[1755875315695,0.6592,4653.0,4652.8,0.021]
[1755875315894,3.0,4653.1,4652.8,0.021]
[1755875315895,0.02686496,4652.9,4652.8,0.021]
[1755875316477,0.02686438,4653.0,4652.8,0.021]
[1755875316678,0.469,4653.9,4652.9,0.11409957]
[1755875316878,3.469,4653.9,4653.0,0.11409957]
[1755875317166,1.61121383,4653.8,4653.1,0.11409957]
[1755875317395,0.19781383,4653.7,4652.8,0.021]
[1755875317581,0.19781383,4653.7,4652.9,0.11412367]
[1755875317785,0.19781383,4653.7,4652.8,0.021]
[1755875317786,0.66,4653.6,4653.0,0.11412367]
[1755875317985,0.9444,4653.8,4653.1,0.11412367]
[1755875318206,3.0,4653.6,4653.2,0.11412367]
[1755875318415,0.66654539,4653.5,4652.8,0.021]
[1755875318567,3.0,4653.6,4652.9,0.1141306]
[1755875318763,3.0,4653.6,4651.5,0.4616]
[1755875318764,0.0268615,4653.5,4650.7,1.2917306]
[1755875319069,0.66,4653.4,4650.7,1.2917306]
[1755875319274,0.66,4653.2,4650.7,1.2917306]
[1755875319497,0.02686381,4653.1,4650.7,1.2917306]
[1755875319698,5.986,4653.0,4650.7,1.2917306]
[1755875319862,0.02686496,4652.9,4650.7,1.2917306]
[1755875320268,0.66,4652.7,4650.7,1.2917306]
[1755875320499,0.02686669,4652.6,4650.7,1.2917306]
[1755875320700,0.02686669,4652.6,4650.7,1.5962306]
[1755875320871,0.4686,4653.3,4650.7,1.5962306]
[1755875321198,0.02686323,4653.2,4650.8,0.3045]
[1755875321381,1.652,4654.0,4650.8,0.3045]
[1755875321382,0.02686034,4653.7,4650.9,3.0]
[1755875321582,0.02686092,4653.6,4651.2,2.14994914]
[1755875321788,0.02685919,4653.9,4651.3,2.45440857]
[1755875321996,0.02685919,4653.9,4651.9,2.14964485]
[1755875322196,0.02685977,4653.8,4652.0,1.652]
[1755875322798,0.66,4653.6,4651.1,1.652]
[1755875323000,0.66,4653.4,4651.1,1.652]
[1755875323208,0.02686265,4653.3,4651.1,1.652]
[1755875323575,0.66,4653.1,4651.1,1.652]
[1755875323780,4.322,4653.9,4651.2,0.3045]
[1755875324207,0.66,4653.7,4651.2,0.3045]
[1755875324428,0.02686092,4653.6,4651.2,0.3045]
[1755875324711,0.02686034,4653.7,4651.2,3.3045]
[1755875324913,0.02686034,4653.7,4651.3,0.3045]
[1755875325096,0.02686034,4653.7,4652.2,0.1072]
[1755875325097,0.1072,4652.9,4652.2,0.1072]
[1755875325410,0.02686554,4652.8,4652.2,0.1072]
[1755875325613,0.022,4654.8,4652.3,0.3045]
[1755875325914,0.1072,4653.6,4653.0,0.1072]
[1755875326282,0.0268615,4653.5,4652.3,0.3045]
[1755875326485,0.0268615,4653.5,4652.8,0.1072]
[1755875326882,0.0268615,4653.5,4652.3,0.3045]
[1755875327089,0.02686207,4653.4,4652.2,1.652]
[1755875327292,0.02,4653.8,4652.3,0.3045]
[1755875328014,0.02686034,4653.7,4652.3,0.3045]
[1755875328202,0.02686034,4653.7,4652.2,1.652]
[1755875329103,0.0192,4653.8,4652.2,1.652]
[1755875329284,0.02686034,4653.7,4652.2,1.652]
[1755875330919,0.68686034,4653.7,4652.2,1.652]
[1755875331582,0.66,4653.5,4651.8,0.02]
[1755875331787,0.02686207,4653.4,4651.8,0.02]
[1755875331994,0.66,4653.0,4651.8,0.02]
[1755875332186,0.49546496,4652.9,4651.8,0.02]
[1755875332410,0.02686496,4652.9,4651.8,0.02]
[1755875332584,0.02686438,4653.0,4651.8,0.02]
[1755875332789,0.02686496,4652.9,4651.8,0.02]
[1755875333126,0.0268615,4653.5,4651.8,0.02]
[1755875333490,0.02686207,4653.4,4651.9,0.3045]
[1755875334016,0.02686034,4653.7,4652.0,0.11548747]
[1755875334328,0.02686034,4653.7,4652.1,0.11548747]
[1755875334529,0.02686034,4653.7,4652.2,0.11548747]
[1755875334703,0.02686034,4653.7,4652.3,0.11548747]
[1755875334911,0.02686034,4653.7,4651.9,0.3045]
[1755875335586,0.68686034,4653.7,4651.8,0.02]
[1755875335787,0.57906409,4653.6,4651.8,0.02]
[1755875335986,1.14847166,4653.5,4651.8,0.02]
[1755875336203,0.66,4653.3,4651.8,0.02]
[1755875336424,0.66,4653.1,4651.8,0.02]
[1755875336724,1.2263715,4652.9,4651.8,0.02]
[1755875336896,0.7672,4651.9,4651.8,0.02]
[1755875337098,1.45640712,4651.9,4651.8,0.02]
[1755875337426,4.92500712,4651.9,4651.8,0.02]
[1755875337632,5.66872838,4651.9,4651.8,0.02]
[1755875337803,5.66872896,4651.9,4651.8,0.02]
[1755875337997,6.00936943,4651.9,4651.8,0.02]
[1755875338217,6.77951199,4651.9,4651.8,0.02]
[1755875338718,6.77951199,4651.9,4649.8,0.02]
[1755875338719,3.66,4651.8,4649.8,0.02]
[1755875338924,3.66,4651.8,4645.8,2.17245862]
[1755875338925,3.66,4650.6,4646.9,0.3265]
[1755875339089,14.08957388,4650.7,4647.6,0.1641669]
[1755875339090,0.66,4650.2,4647.6,0.1641669]
[1755875339292,0.66,4649.4,4647.6,0.001]
[1755875339624,3.66,4649.2,4647.6,0.001]
[1755875339826,1.23782683,4649.0,4647.6,0.001]
[1755875339994,0.57782683,4648.7,4647.6,0.001]
[1755875340198,1.23702683,4648.5,4647.6,0.001]
[1755875340426,0.68922735,4648.4,4647.6,0.001]
[1755875340612,3.0,4648.0,4645.5,0.001]
[1755875340811,1.24016321,4648.3,4645.5,0.001]
[1755875340812,6.66323024,4647.9,4645.5,0.001]
[1755875341012,4.3286594,4647.8,4645.5,0.001]
[1755875341214,0.6892314,4647.7,4645.5,0.001]
[1755875341413,0.68923198,4647.6,4645.5,0.001]
[1755875341614,0.66233638,4647.5,4645.5,0.001]
[1755875341817,0.22762297,4647.4,4645.5,0.001]
[1755875342101,0.49549675,4647.4,4645.5,0.001]
[1755875342305,0.86007024,4647.3,4645.5,0.001]
[1755875342506,0.86007024,4647.3,4644.8,0.012504]
[1755875342507,12.6592002,4647.1,4644.8,0.012504]
[1755875342732,3.66,4646.1,4644.8,0.012504]
[1755875342931,3.66,4645.9,4644.4,0.001]
[1755875343232,3.66,4645.7,4644.4,0.001]
[1755875343403,0.66,4645.5,4644.4,0.001]
[1755875343607,0.57782683,4645.1,4644.4,0.001]
[1755875343801,13.3192002,4645.3,4643.8,0.02]
[1755875343802,0.66,4644.8,4643.8,0.02]
[1755875343997,0.57782683,4644.9,4643.8,0.02]
[1755875343998,2.43021046,4644.7,4643.8,0.02]
[1755875344334,0.66,4644.5,4643.8,0.02]
[1755875344539,0.66,4644.3,4643.8,0.02]
[1755875344745,3.66,4644.1,4641.8,0.02]
[1755875345043,3.66,4643.2,4641.8,0.02]
[1755875345209,12.6592002,4643.7,4641.8,0.02]
[1755875345210,0.66,4643.0,4641.8,0.02]
[1755875345532,0.66,4642.8,4641.8,0.02]
[1755875345693,0.66,4642.6,4641.8,0.02]
[1755875345899,2.1216,4643.1,4641.8,0.02]
[1755875345900,0.02692514,4642.5,4641.8,0.02]
[1755875346129,0.02692224,4643.0,4641.8,0.464]
[1755875346308,1.653,4643.1,4641.8,0.02]
[1755875346723,1.654,4644.1,4641.9,0.444]
[1755875346944,6.01391645,4644.0,4641.9,0.444]
[1755875347096,3.0,4643.9,4641.8,0.02]
[1755875347419,3.0,4643.7,4641.8,0.02]
[1755875347617,4.35891876,4643.6,4641.9,0.444]
[1755875347807,0.02691876,4643.6,4641.9,0.444]
[1755875348000,1.654,4644.0,4641.9,0.444]
[1755875348198,0.52,4647.8,4642.0,3.66]
[1755875348199,1.654,4645.6,4642.0,3.66]
[1755875348431,1.654,4645.6,4642.1,0.444]
[1755875348432,4.337,4645.6,4642.1,0.444]
[1755875348605,0.45510776,4645.5,4642.1,0.444]
[1755875348803,3.66,4644.9,4641.8,0.02]
[1755875349101,0.66,4643.0,4641.8,0.02]
[1755875349314,0.66,4642.7,4641.8,0.02]
[1755875349537,1.655,4642.9,4641.8,0.02]
[1755875349740,1.655,4643.9,4641.9,0.444]
[1755875349947,0.02691761,4643.8,4641.8,0.02]
[1755875350255,0.4282,4643.7,4641.8,0.02]
[1755875350433,0.66,4643.4,4641.8,0.02]
[1755875350608,0.0269205,4643.3,4641.8,0.02]
[1755875350803,1.655,4645.3,4642.0,3.0]
[1755875351059,0.1655,4645.2,4642.1,3.444]
[1755875351217,0.02691007,4645.1,4642.2,0.444]
[1755875351540,4.7832,4646.8,4642.9,12.6592002]
[1755875351744,0.33694442,4646.6,4643.0,2.099]
[1755875352039,4.38090196,4646.5,4643.4,2.15357154]
[1755875352200,4.38090196,4646.5,4643.0,1.655]
[1755875352201,4.38090196,4646.5,4643.5,0.444]
[1755875352406,0.89998464,4646.4,4643.0,2.099]
[1755875352605,0.89998464,4646.4,4642.9,0.15911048]
[1755875352606,0.45430312,4646.3,4642.9,0.15911048]
[1755875352842,3.66,4646.1,4642.7,0.444]
[1755875353044,0.66,4645.4,4642.7,0.60884343]
[1755875353256,0.66,4645.2,4642.7,0.60884343]
[1755875353544,0.66,4645.0,4642.7,0.60884343]
[1755875353744,0.66,4644.8,4642.7,0.60884343]
[1755875354045,0.02691239,4644.7,4642.7,0.60884343]
[1755875354340,2.25011223,4648.3,4642.7,0.60884343]
[1755875354341,0.02,4643.8,4642.9,0.66]
[1755875354509,0.02,4643.8,4643.0,2.099]
[1755875354710,0.02,4643.8,4643.1,3.0]
[1755875354911,0.02,4643.8,4643.7,2.15345521]
[1755875355422,1.655,4646.5,4643.7,2.15345521]
[1755875355423,1.655,4647.6,4644.0,0.66]
[1755875355649,0.02689849,4647.1,4645.1,2.15279562]
[1755875355956,0.02689849,4647.1,4644.8,0.444]
[1755875356529,0.4282,4647.0,4642.6,0.001]
[1755875356732,5.6012,4647.0,4643.3,0.444]
[1755875357046,0.02689965,4646.9,4644.7,3.0]
[1755875357253,0.002,4647.3,4645.6,0.66]
[1755875357413,0.002,4647.3,4646.0,0.66]
[1755875357614,0.02,4647.8,4646.5,3.66]
[1755875357823,0.02,4647.8,4646.5,0.66]
[1755875358157,0.02,4647.8,4646.7,0.66]
[1755875358369,0.02,4647.8,4646.6,0.444]
[1755875359044,0.02,4647.8,4646.6,0.16499598]
[1755875359045,0.02689502,4647.7,4646.6,0.16499598]
[1755875359231,0.02689502,4647.7,4646.8,0.108]
[1755875359232,0.1072,4647.4,4646.8,0.108]
[1755875359440,0.02,4647.8,4647.3,0.1072]
[1755875359835,0.02,4647.8,4647.7,0.1072]
[1755875360348,0.02,4647.8,4646.4,0.444]
[1755875360547,0.02689502,4647.7,4645.7,1.655]
[1755875360956,0.108,4646.8,4646.1,0.108]
[1755875361165,0.02689502,4647.7,4645.7,1.655]
[1755875361166,0.68689502,4647.7,4645.7,1.655]
[1755875361321,0.108,4646.6,4645.9,0.108]
[1755875361818,0.22397439,4647.5,4645.7,0.16286185]
[1755875361819,0.19707821,4647.4,4645.7,0.16286185]
[1755875362017,0.108,4646.8,4646.2,0.108]
[1755875362219,0.02,4647.8,4645.4,0.66]
[1755875362455,0.02689502,4647.7,4645.4,0.66]
[1755875362750,0.02,4647.8,4645.9,0.66]
[1755875362956,0.02,4647.8,4646.2,3.66]
[1755875363257,0.02,4647.8,4646.5,0.66]
[1755875363625,0.02,4647.8,4647.4,2.15172566]
[1755875363853,0.02,4647.8,4647.4,0.66]
[1755875364025,0.02,4647.8,4647.5,0.444]
[1755875364226,0.02,4647.8,4647.6,3.0]
[1755875364489,0.02,4647.8,4647.6,3.444]
[1755875364630,0.0192,4647.8,4647.3,0.16114135]
[1755875364825,0.0192,4647.8,4647.1,1.655]
[1755875366027,0.0192,4647.8,4647.3,0.66]
[1755875366328,0.02,4648.8,4648.2,5.81137042]
[1755875366569,0.02,4649.8,4648.5,0.66]
[1755875366866,0.02,4649.8,4649.6,0.66]
[1755875367154,0.02,4649.8,4649.7,5.314]
[1755875367357,0.02,4649.8,4649.7,9.66]
[1755875367655,0.02,4649.8,4649.7,5.758]
[1755875367831,0.02,4649.8,4649.7,10.103]
[1755875368023,0.02,4649.8,4649.7,5.47195719]
[1755875368238,0.02,4649.8,4649.7,4.81195719]
[1755875369171,0.02,4649.8,4649.7,1.81195719]
[1755875369883,0.02,4649.8,4649.7,0.15795719]
[1755875370175,0.02,4649.8,4648.8,4.654]
[1755875370482,0.02,4649.8,4648.8,4.674]
[1755875370684,0.02,4649.8,4648.8,1.83744787]
[1755875371040,0.02,4649.8,4649.0,3.0]
[1755875371344,0.02,4649.8,4649.0,0.66]
[1755875371562,0.02,4649.8,4649.2,3.0]
[1755875372159,0.02,4649.8,4649.4,3.0]
[1755875372360,0.02,4649.8,4649.4,0.66]
[1755875372569,0.02,4649.8,4649.7,5.91787638]
[1755875372875,5.93373238,4652.3,4649.7,5.91787638]
[1755875372876,0.026869,4652.2,4650.2,0.66]
[1755875373079,0.19773302,4652.1,4650.7,0.1072]
[1755875373251,0.5354,4652.3,4650.7,0.1072]
[1755875373252,0.02687016,4652.0,4650.7,0.1072]
[1755875373449,0.5354,4652.3,4650.7,0.1072]
[1755875373450,0.026869,4652.2,4650.7,0.1072]
[1755875374059,0.026869,4652.2,4650.7,0.20763995]
[1755875374269,0.022,4650.8,4650.7,0.20763995]
[1755875374483,0.022,4650.8,4650.7,4.53263995]
[1755875374651,0.022,4650.8,4650.7,7.53263995]
[1755875374847,0.022,4650.8,4650.7,10.76685389]
[1755875375048,0.022,4650.8,4650.7,0.1072]
[1755875375376,0.022,4650.8,4650.7,0.66]
[1755875375744,0.022,4650.8,4650.5,3.10157667]
[1755875375945,0.022,4650.8,4650.7,2.81021394]
[1755875376152,0.022,4650.8,4650.7,0.66]
[1755875376364,0.022,4650.8,4650.5,3.10157667]
[1755875376660,0.022,4650.8,4650.7,5.81021394]
[1755875376869,0.0212,4650.8,4650.7,5.92474194]
[1755875377179,0.02,4652.8,4650.9,3.0]
[1755875377390,0.02,4652.8,4651.7,5.8097517]
[1755875377549,0.02,4652.8,4651.7,11.7867517]
[1755875377949,0.02,4652.8,4651.7,9.51556597]
[1755875378191,0.02,4652.8,4651.7,8.977]
[1755875378568,0.04686554,4652.8,4651.7,5.977]
[1755875378777,0.4817,4651.8,4651.6,0.16078251]
[1755875379102,0.02,4651.8,4651.4,4.323]
[1755875379390,0.02,4651.8,4650.6,1.81496359]
[1755875379391,0.02,4651.8,4651.5,0.11458595]
[1755875379550,0.66,4651.6,4648.3,1.653]
[1755875379751,0.02,4651.8,4648.3,1.653]
[1755875379752,0.66,4651.4,4648.4,4.4377269]
[1755875379975,0.02,4651.8,4648.4,4.323]
[1755875379976,0.66,4651.2,4648.4,4.323]
[1755875380179,0.66,4651.2,4648.3,0.16522645]
[1755875380180,0.66,4651.0,4648.3,0.16522645]
[1755875380352,0.66,4651.0,4647.2,1.653]
[1755875380353,0.66,4650.8,4647.3,0.11518846]
[1755875380550,0.66,4650.6,4647.2,1.653]
[1755875380751,0.66,4650.0,4647.3,0.16385613]
[1755875380952,3.66,4649.8,4647.3,0.16385613]
[1755875381201,0.66,4649.6,4647.3,0.16385613]
[1755875381490,0.66,4649.6,4644.8,4.322]
[1755875381491,0.66,4648.6,4644.8,4.322]
[1755875381658,3.66,4648.4,4644.9,0.11532511]
[1755875381855,0.66,4648.2,4644.9,0.11532489]
[1755875382051,0.66,4648.0,4644.9,3.11532489]
[1755875382253,0.68653236,4647.9,4645.0,0.11532489]
[1755875382449,0.1979385,4647.8,4645.1,2.15280152]
[1755875382699,0.1979385,4647.8,4644.9,0.16418331]
[1755875382700,0.68725994,4647.7,4645.2,0.11532489]
[1755875382864,0.19867935,4647.6,4644.9,0.2795082]
[1755875383207,0.88558972,4647.5,4644.9,0.11532489]
[1755875383381,3.66,4647.3,4644.9,0.11532489]
[1755875383582,0.66,4647.1,4643.8,0.11632489]
[1755875383898,0.68747438,4647.0,4644.4,2.15309139]
[1755875384197,0.19887531,4646.9,4644.5,0.55592489]
[1755875384517,0.22577554,4646.8,4644.7,3.0]
[1755875384697,0.19901718,4646.7,4644.8,0.11532489]
[1755875384863,0.19901718,4646.7,4643.8,0.25995921]
[1755875384864,0.68690139,4646.6,4644.4,0.11532489]
[1755875385065,0.66,4646.4,4643.9,0.11532489]
[1755875385289,0.66,4646.4,4643.8,0.16039522]
[1755875385290,4.87999382,4646.3,4643.8,0.16039522]
[1755875385489,0.108,4645.3,4643.8,0.16039522]
[1755875385696,0.108,4644.1,4643.8,0.001]
[1755875385892,0.22600936,4644.0,4642.8,0.021]
[1755875386200,4.1187828,4645.1,4642.8,0.021]
[1755875386201,0.108,4643.7,4643.0,0.108]
[1755875386500,0.02691587,4644.1,4643.7,0.108]
[1755875386668,0.108,4644.3,4643.7,0.108]
[1755875386868,0.108,4644.3,4643.7,0.5486]
[1755875387071,0.19890061,4645.8,4643.9,0.66]
[1755875387391,0.19890061,4645.8,4645.6,0.108]
[1755875387589,0.02690486,4646.0,4645.6,0.27325782]
[1755875387762,0.4617,4645.9,4645.6,0.108]
[1755875387969,0.02690486,4646.0,4645.6,0.108]
[1755875388372,0.48860544,4645.9,4643.2,1.654]
[1755875388712,0.108,4644.5,4643.9,0.108]
[1755875388919,0.108,4644.5,4642.1,1.654]
[1755875388920,0.108,4644.2,4643.6,0.108]
[1755875389068,0.4617,4645.4,4642.3,0.4406]
[1755875389419,0.4617,4645.4,4642.9,0.4406]
[1755875389601,0.48860833,4645.4,4643.0,0.11559492]
[1755875389911,0.02690833,4645.4,4644.8,0.108]
[1755875390067,0.48860833,4645.4,4643.6,0.11559492]
[1755875390404,0.48860833,4645.4,4643.8,0.001]
[1755875390714,0.002,4644.3,4643.8,0.001]
[1755875391083,0.002,4644.3,4644.2,0.108]
[1755875391283,0.002,4644.3,4644.2,2.59382337]
[1755875391522,0.108,4646.4,4644.9,2.15287541]
[1755875391815,0.33685881,4647.9,4646.4,3.0]
[1755875392068,0.02689444,4647.8,4647.4,0.1072]
[1755875392238,0.0268927,4648.1,4647.4,0.1072]
[1755875392374,0.0268927,4648.1,4645.9,0.66]
[1755875392375,0.4617,4648.0,4645.3,4.654]
[1755875392576,0.02689386,4647.9,4645.3,17.3132002]
[1755875393181,0.4617,4647.8,4645.3,0.16200289]
[1755875393519,0.108,4646.5,4645.8,0.108]
[1755875393678,0.02690254,4646.4,4644.4,3.0]
[1755875393877,0.48860023,4646.8,4645.6,0.108]
[1755875394077,0.108,4646.3,4645.6,0.108]
[1755875394307,0.0269037,4646.2,4645.6,0.108]
[1755875394505,0.02690081,4646.7,4645.3,3.0]
[1755875394752,0.02690081,4646.7,4646.0,0.108]
[1755875394753,0.13490081,4646.7,4646.0,0.108]
[1755875395128,1.654,4648.1,4646.2,12.6592002]
[1755875395347,0.4617,4648.5,4646.3,3.0]
[1755875395625,0.4617,4648.5,4646.4,0.77515808]
[1755875395826,0.02689097,4648.4,4646.6,3.0]
[1755875396419,1.654,4649.1,4646.6,3.0]
[1755875396625,0.0268875,4649.0,4646.6,3.0]
[1755875396872,0.4617,4648.9,4646.5,5.979]
[1755875397035,0.68688865,4648.8,4646.5,5.979]
[1755875397235,0.87655886,4648.7,4646.5,5.979]
[1755875397565,0.02688981,4648.6,4646.5,5.979]
[1755875397730,0.4617,4648.5,4646.5,5.979]
[1755875397935,0.68689097,4648.4,4646.5,5.979]
[1755875398148,0.66,4648.2,4646.5,5.979]
[1755875398323,0.0268927,4648.1,4646.5,5.979]
[1755875398724,0.0268927,4648.1,4646.6,3.0]
[1755875398918,0.0268927,4648.1,4646.5,5.979]
[1755875399154,0.0268927,4648.1,4646.5,1.654]
[1755875399334,0.02689328,4648.0,4646.5,1.654]
[1755875399550,0.02689039,4648.5,4646.5,1.654]
[1755875399773,0.4617,4648.1,4646.5,1.654]
[1755875399922,0.02689328,4648.0,4646.5,1.654]
[1755875400120,0.79848098,4648.9,4646.5,2.0946]
[1755875400323,0.02688865,4648.8,4646.6,0.66]
[1755875400551,0.4617,4648.9,4646.6,0.66]
[1755875400766,1.654,4649.1,4646.6,0.66]
[1755875400940,0.33673908,4649.8,4648.2,3.0]
[1755875401156,0.58538017,4651.8,4648.2,3.0]
[1755875401157,0.4617,4651.3,4648.4,3.0]
[1755875401472,0.4617,4651.3,4648.3,5.978]
[1755875401473,1.654,4651.4,4648.5,0.1150151]
[1755875401474,0.02607767,4650.7,4648.5,0.1150151]
[1755875401671,0.4617,4650.7,4648.6,3.0]
[1755875401825,0.02687825,4650.6,4648.6,3.0]
[1755875402176,0.4617,4650.7,4648.6,3.16301872]
[1755875402366,0.02687825,4650.6,4648.6,3.16301872]
[1755875403068,0.48857767,4650.7,4648.6,3.16301872]
[1755875403231,0.02687825,4650.6,4648.7,0.11509455]
[1755875403430,0.02687825,4650.6,4649.1,3.0]
[1755875403629,1.654,4651.4,4649.2,0.4406]
[1755875403865,1.654,4651.4,4649.6,0.66]
[1755875404043,0.02,4651.8,4649.8,0.66]
[1755875404244,0.04687131,4651.8,4649.9,0.11506505]
[1755875404467,0.04687131,4651.8,4649.7,1.654]
[1755875404684,0.4617,4651.4,4649.7,1.654]
[1755875404892,0.02687767,4650.7,4649.7,1.654]
[1755875405049,0.1072,4650.7,4650.1,0.1072]
[1755875405257,0.02687825,4650.6,4650.1,0.1072]
[1755875405568,0.02687825,4650.6,4649.7,1.654]
[1755875405569,0.1072,4651.4,4650.6,0.1072]
[1755875406146,0.0268742,4651.3,4650.6,0.1072]
[1755875406568,0.1072,4651.4,4650.6,0.1072]
[1755875406884,0.0268742,4651.3,4650.6,0.1072]
[1755875407550,0.0268742,4651.3,4650.2,4.322]
[1755875407786,0.002,4650.7,4650.3,3.0]
[1755875408084,0.002,4650.7,4650.6,2.15026018]
[1755875408380,0.002,4650.7,4650.6,0.11566583]
[1755875408564,0.002,4650.7,4650.5,4.322]
[1755875408764,0.002,4650.7,4649.4,3.444]
[1755875409093,0.002,4650.7,4649.9,3.0]
[1755875409302,0.002,4650.7,4648.4,12.76043241]
[1755875409303,0.02887767,4650.7,4648.4,13.20443241]
[1755875409496,0.002,4650.7,4649.8,0.11598555]
[1755875410601,0.002,4650.7,4649.8,0.77598555]
[1755875410807,0.02,4651.8,4651.5,2.14983977]
[1755875411118,0.02,4651.8,4651.7,3.0]
[1755875411320,0.02,4651.8,4651.7,7.32]
[1755875411620,0.02,4651.8,4651.7,0.1631361]
[1755875411974,0.02,4651.8,4651.7,7.32]
[1755875412217,0.02,4651.8,4651.7,9.9137517]
[1755875412372,0.02,4651.8,4651.7,7.9234391]
[1755875412572,0.02,4651.8,4651.7,10.84892166]
[1755875413005,0.0212,4653.8,4651.7,10.84892166]
[1755875413006,0.0212,4653.8,4651.8,0.66]
[1755875413214,0.0212,4653.8,4652.6,0.66]
[1755875413450,0.0212,4653.8,4652.8,3.0]
[1755875413607,0.0204,4653.8,4653.1,2.14909396]
[1755875413778,0.0204,4653.8,4653.2,0.11573086]
[1755875414098,0.0204,4653.8,4653.3,4.319]
[1755875414481,0.4694,4653.8,4653.3,4.319]
[1755875414811,0.47586034,4653.7,4652.7,1.653]
[1755875414975,0.47586034,4653.7,4652.8,4.319]
[1755875415177,0.47586034,4653.7,4652.0,3.0]
[1755875415178,0.47586034,4653.7,4652.2,4.318]
[1755875415507,0.0204,4653.8,4652.4,3.0]
[1755875415908,0.0204,4653.8,4652.6,3.0]
[1755875416086,0.02686034,4653.7,4652.6,3.0]
[1755875416507,0.0204,4653.8,4652.6,3.0]
[1755875416871,0.0204,4653.8,4653.1,3.0]
[1755875417075,0.0104,4653.8,4653.4,2.14896634]
[1755875417413,0.0104,4653.8,4653.3,3.0]
[1755875417614,0.0104,4653.8,4653.4,0.10071106]
[1755875417927,0.0104,4653.8,4653.7,2.25602781]
[1755875418092,0.0104,4653.8,4653.7,0.1072]
[1755875418278,0.0104,4653.8,4653.7,6.57202781]
[1755875418608,0.0104,4653.8,4653.7,3.1072]
[1755875418978,0.4594,4653.8,4653.2,1.653]
[1755875419178,0.02686034,4653.7,4653.2,5.969]
[1755875419382,0.449,4653.6,4653.2,5.969]
[1755875419573,0.0268615,4653.5,4653.2,1.653]
[1755875419774,0.4758615,4653.5,4653.2,5.969]
[1755875419975,0.0104,4653.8,4653.2,5.969]
[1755875420285,0.0104,4653.8,4653.2,6.13169618]
[1755875420486,0.0104,4653.8,4653.3,3.0]
[1755875420691,0.0104,4653.8,4653.3,5.14901118]
[1755875420997,0.0104,4653.8,4653.4,0.5596112]
[1755875421183,0.0104,4653.8,4653.3,3.0]
[1755875421508,0.0104,4653.8,4653.2,1.81569618]
[1755875421702,0.449,4653.7,4653.3,4.315]
[1755875421899,0.47586092,4653.6,4653.3,4.315]
[1755875422298,0.449,4653.5,4653.2,1.81569618]
[1755875422510,0.02686207,4653.4,4653.2,1.31569618]
[1755875422712,0.0104,4653.8,4653.2,1.31569618]
[1755875423014,0.0104,4653.8,4653.2,4.31569618]